Workbook

Sheet Población
A1: Ubigeo | B1: Provincia_distrito | C1: Año2020 | D1: Año2021 | E1: Año2022 | F1: Año2023 | G1: Año2024 | H1: Año2025
A2: 060000 | B2: Cajamarca | C2: =SUM(C3,C16,C21,C34,C54,C63,C79,C83,C96,C104,C112,C126,C131) -> 0 | D2: =SUM(D3,D16,D21,D34,D54,D63,D79,D83,D96,D104,D112,D126,D131) -> 354 047 | E2: =SUM(E3,E16,E21,E34,E54,E63,E79,E83,E96,E104,E112,E126,E131) -> 728 371 | F2: =SUM(F3,F16,F21,F34,F54,F63,F79,F83,F96,F104,F112,F126,F131) -> 730 885 | G2: =SUM(G3,G16,G21,G34,G54,G63,G79,G83,G96,G104,G112,G126,G131) -> 736 636 | H2: =SUM(H3+H16+H21+H34+H54+H63+H79+H83+H96+H104+H112+H126+H131) -> 739 549
A3: 060100 | B3: Cajamarca | C3: =SUM(C4:C15) -> 0 | D3: =SUM(D4:D15) -> 182 281 | E3: =SUM(E4:E15) -> 196 155 | F3: =SUM(F4:F15) -> 207 267 | G3: =SUM(G4:G15) -> 200 443 | H3: 202 447
A4: 060101 | B4: Cajamarca | D4: 115 858 | E4: 124 706 | F4: 131 291 | G4: 131 097 | H4: 135 944
A5: 060102 | B5: Asunción | D5: 6 148 | E5: 3 710 | F5: 3 880 | G5: 3 680 | H5: 3 548
A6: 060103 | B6: Chetilla | D6: 1 941 | E6: 1 966 | F6: 2 011 | G6: 1 813 | H6: 1 695
A7: 060104 | B7: Cospán | D7: 3 676 | E7: 3 597 | F7: 3 550 | G7: 3 353 | H7: 3 228
A8: 060105 | B8: Encañada | D8: 12 108 | E8: 9 482 | F8: 9 937 | G8: 9 114 | H8: 8 721
A9: 060106 | B9: Jesús | D9: 6 817 | E9: 8 742 | F9: 8 841 | G9: 8 201 | H9: 7 754
A10: 060107 | B10: Llacanora | D10: 2 592 | E10: 3 219 | F10: 3 551 | G10: 3 177 | H10: 3 046
A11: 060108 | B11: Los Baños del Inca | D11: 19 909 | E11: 27 056 | F11: 29 295 | G11: 27 038 | H11: 25 792
A12: 060109 | B12: Magdalena | D12: 4 397 | E12: 4 325 | F12: 4 556 | G12: 4 102 | H12: 3 893
A13: 060110 | B13: Matara | D13: 1 709 | E13: 1 775 | F13: 2 005 | G13: 1 792 | H13: 1 659
A14: 060111 | B14: Namora | D14: 4 648 | E14: 5 444 | F14: 6 074 | G14: 4 963 | H14: 5 143
A15: 060112 | B15: San Juan | D15: 2 478 | E15: 2 133 | F15: 2 276 | G15: 2 113 | H15: 2 024
A16: 060200 | B16: Cajabamba | C16: =SUM(C17:C20) -> 0 | D16: =SUM(D17:D20) -> 39 678 | E16: =SUM(E17:E20) -> 37 153 | F16: =SUM(F17:F20) -> 32 422 | G16: =SUM(G17:G20) -> 41 965 | H16: 41 497
A17: 60201 | B17: Cajabamba | D17: 15 803 | E17: 11 180 | F17: 7 792 | G17: 17 444 | H17: 16 967
A18: 60202 | B18: Cachachi | D18: 13 297 | E18: 13 569 | F18: 12 701 | G18: 12 806 | H18: 12 904
A19: 060203 | B19: Condebamba | D19: 6 287 | E19: 8 228 | F19: 7 957 | G19: 7 489 | H19: 7 187
A20: 060204 | B20: Sitacocha | D20: 4 291 | E20: 4 176 | F20: 3 972 | G20: 4 226 | H20: 4 439
A21: 060300 | B21: Celendín | C21: =SUM(C22:C33) -> 0 | D21: =SUM(D22:D33) -> 44 568 | E21: =SUM(E22:E33) -> 45 558 | F21: =SUM(F22:F33) -> 41 800 | G21: =SUM(G22:G33) -> 40 674 | H21: 40 044
A22: 060301 | B22: Celendín | D22: 12 366 | E22: 19 015 | F22: 15 498 | G22: 14 459 | H22: 13 770
A23: 060302 | B23: Chumuch | D23: 1 616 | E23: 1 290 | F23: 1 235 | G23: 1 252 | H23: 1 282
A24: 060303 | B24: Cortegana | D24: 4 165 | E24: 3 718 | F24: 3 523 | G24: 3 422 | H24: 3 363
A25: 060304 | B25: Huasmín | D25: 6 195 | E25: 5 237 | F25: 5 187 | G25: 5 147 | H25: 5 128
A26: 060305 | B26: Jorge Chávez | D26: 273 | E26: 174 | F26: 216 | G26: 228 | H26: 244
A27: 060306 | B27: José Gálvez | D27: 1 133 | E27: 1 316 | F27: 1 374 | G27: 1 292 | H27: 1 220
A28: 060307 | B28: Miguel Iglesias | D28: 2 606 | E28: 1 960 | F28: 1 917 | G28: 1 932 | H28: 1 942
A29: 060308 | B29: Oxamarca | D29: 3 534 | E29: 2 926 | F29: 2 833 | G29: 3 016 | H29: 3 142
A30: 060309 | B30: Sorochuco | D30: 4 723 | E30: 3 370 | F30: 3 539 | G30: 3 674 | H30: 3 768
A31: 060310 | B31: Sucre | D31: 2 942 | E31: 2 699 | F31: 2 642 | G31: 2 542 | H31: 2 504
A32: 060311 | B32: Utco | D32: 705 | E32: 473 | F32: 490 | G32: 532 | H32: 579
A33: 060312 | B33: La Libertad de Pallán | D33: 4 310 | E33: 3 380 | F33: 3 346 | G33: 3 178 | H33: 3 102
A34: 060400 | B34: Chota | C34: =SUM(C35:C50,C51:C53) -> 0 | D34: =SUM(D35:D50,D51:D53) -> 2 255 | E34: =SUM(E35:E50,E51:E53) -> 75 286 | F34: =SUM(F35:F50,F51:F53) -> 75 938 | G34: =SUM(G35:G50,G51:G53) -> 73 381 | H34: 71 279
A35: 060401 | B35: Chota | D35: 665 | E35: 26 045 | F35: 26 693 | G35: 25 520 | H35: 24 758
A36: 060402 | B36: Anguía | D36: 62 | E36: 1 720 | F36: 1 705 | G36: 1 435 | H36: 1 387
A37: 060403 | B37: Chadín | D37: 36 | E37: 1 742 | F37: 1 733 | G37: 1 697 | H37: 1 667
A38: 060404 | B38: Chiguirip | D38: 65 | E38: 1 644 | F38: 1 694 | G38: 1 651 | H38: 1 590
A39: 060405 | B39: Chimbán | D39: 13 | E39: 1 015 | F39: 981 | G39: 987 | H39: 1 014
A40: 060406 | B40: Choropampa | D40: 25 | E40: 1 080 | F40: 1 046 | G40: 1 165 | H40: 1 262
A41: 060407 | B41: Cochabamba | D41: 114 | E41: 2 850 | F41: 2 919 | G41: 2 744 | H41: 2 567
A42: 060408 | B42: Conchán | D42: 100 | E42: 2 950 | F42: 2 929 | G42: 2 937 | H42: 2 940
A43: 060409 | B43: Huambos | D43: 169 | E43: 4 237 | F43: 4 316 | G43: 4 027 | H43: 7 393
A44: 060410 | B44: Lajas | D44: 182 | E44: 5 768 | F44: 5 879 | G44: 5 483 | H44: 5 190
A45: 060411 | B45: Llama | D45: 154 | E45: 3 706 | F45: 3 827 | G45: 3 649 | H45: 3 445
A46: 060412 | B46: Miracosta | D46: 54 | E46: 1 552 | F46: 1 545 | G46: 1 508 | H46: 1 494
A47: 060413 | B47: Paccha | D47: 57 | E47: 2 315 | F47: 2 202 | G47: 2 131 | H47: 2 109
A48: 060414 | B48: Pión | D48: 16 | E48: 522 | F48: 503 | G48: 560 | H48: 594
A49: 060415 | B49: Querocoto | D49: 127 | E49: 4 468 | F49: 4 319 | G49: 4 343 | H49: 4 332
A50: 060416 | B50: San Juan de Licupis | D50: 20 | E50: 404 | F50: 443 | G50: 446 | H50: 438
A51: 060417 | B51: Tacabamba | D51: 250 | E51: 8 033 | F51: 7 964 | G51: 8 119 | H51: 8 031
A52: 060418 | B52: Tocmoche | D52: 24 | E52: 391 | F52: 413 | G52: 399 | H52: 373
A53: 060419 | B53: Chalamarca | D53: 122 | E53: 4 844 | F53: 4 827 | G53: 4 580 | H53: 4 395
A54: 060500 | B54: Contumazá | C54: =SUM(C55:C62) -> 0 | D54: =SUM(D55:D62) -> 15 674 | E54: =SUM(E55:E62) -> 14 498 | F54: =SUM(F55:F62) -> 14 361 | G54: =SUM(G55:G62) -> 14 196 | H54: 14 056
A55: 060501 | B55: Contumazá | D55: 4 103 | E55: 3 999 | F55: 3 930 | G55: 4 131 | H55: 4 267
A56: 060502 | B56: Chilete | D56: 1 363 | E56: 1 304 | F56: 1 356 | G56: 1 293 | H56: 1 247
A57: 060503 | B57: Cupisnique | D57: 758 | E57: 620 | F57: 644 | G57: 696 | H57: 735
A58: 060504 | B58: Guzmango | D58: 1 521 | E58: 1 443 | F58: 1 407 | G58: 1 346 | H58: 1 313
A59: 060505 | B59: San Benito | D59: 1 959 | E59: 1 779 | F59: 1 763 | G59: 1 743 | H59: 1 696
A60: 060506 | B60: Santa Cruz de Toledo | D60: 543 | E60: 487 | F60: 501 | G60: 490 | H60: 490
A61: 060507 | B61: Tantarica | D61: 1 579 | E61: 1 200 | F61: 1 272 | G61: 1 260 | H61: 1 255
A62: 060508 | B62: Yonán | D62: 3 848 | E62: 3 666 | F62: 3 488 | G62: 3 237 | H62: 3 053
A63: 060600 | B63: Cutervo | C63: =SUM(C64:C78) -> 0 | D63: =SUM(D64:D78) -> 1 650 | E63: =SUM(E64:E78) -> 64 560 | F63: =SUM(F64:F78) -> 74 259 | G63: =SUM(G64:G78) -> 74 471 | H63: 74 417
A64: 060601 | B64: Cutervo | D64: 675 | E64: 26 876 | F64: 32 304 | G64: 32 330 | H64: 32 287
A65: 060602 | B65: Callayuc | D65: 130 | E65: 4 949 | F65: 5 616 | G65: 5 647 | H65: 5 650
A66: 060603 | B66: Choros | D66: 52 | E66: 1 652 | F66: 1 726 | G66: 1 765 | H66: 1 754
A67: 060604 | B67: Cujillo | D67: 18 | E67: 1 315 | F67: 1 362 | G67: 1 373 | H67: 1 375
A68: 060605 | B68: La Ramada | D68: 45 | E68: 2 075 | F68: 2 238 | G68: 2 239 | H68: 2 243
A69: 060606 | B69: Pimpingos | D69: 72 | E69: 2 643 | F69: 3 017 | G69: 3 032 | H69: 3 035
A70: 060607 | B70: Querocotillo | D70: 196 | E70: 7 030 | F70: 8 019 | G70: 8 015 | H70: 8 045
A71: 060608 | B71: San Andrés de Cutervo | D71: 53 | E71: 2 240 | F71: 2 519 | G71: 2 510 | H71: 2 507
A72: 060609 | B72: San Juan de Cutervo | D72: 21 | E72: 989 | F72: 1 171 | G72: 1 185 | H72: 1 177
A73: 060610 | B73: San Luis de Lucma | D73: 42 | E73: 1 584 | F73: 1 732 | G73: 1 734 | H73: 1 729
A74: 060611 | B74: Santa Cruz | D74: 24 | E74: 1 397 | F74: 1 409 | G74: 1 390 | H74: 1 396
A75: 060612 | B75: Santo Domingo de la Capilla | D75: 71 | E75: 2 578 | F75: 2 927 | G75: 2 958 | H75: 2 956
A76: 060613 | B76: Santo Tomás | D76: 90 | E76: 3 879 | F76: 4 264 | G76: 4 344 | H76: 4 320
A77: 060614 | B77: Sócota | D77: 136 | E77: 4 777 | F77: 5 298 | G77: 5 290 | H77: 5 286
A78: 060615 | B78: Toribio Casanova | D78: 25 | E78: 576 | F78: 657 | G78: 659 | H78: 657
A79: 060700 | B79: Hualgayoc | C79: =SUM(C80:C82) -> 0 | D79: =SUM(D80:D82) -> 1 205 | E79: =SUM(E80:E82) -> 40 969 | F79: =SUM(F80:F82) -> 41 640 | G79: =SUM(G80:G82) -> 39 953 | H79: 38 500
A80: 060701 | B80: Bambamarca | D80: 971 | E80: 32 162 | F80: 32 466 | G80: 30 956 | H80: 29 634
A81: 060702 | B81: Chugur | D81: 52 | E81: 1 236 | F81: 1 256 | G81: 1 302 | H81: 1 348
A82: 060703 | B82: Hualgayoc | D82: 182 | E82: 7 571 | F82: 7 918 | G82: 7 695 | H82: 7 518
A83: 060800 | B83: Jaén | C83: =SUM(C84:C95) -> 0 | D83: =SUM(D84:D95) -> 1 539 | E83: =SUM(E84:E95) -> 100 205 | F83: =SUM(F84:F95) -> 95 036 | G83: =SUM(G84:G95) -> 101 849 | H83: 103 115
A84: 060801 | B84: Jaén | D84: 680 | E84: 53 114 | F84: 53 811 | G84: 53 258 | H84: 53 033
A85: 060802 | B85: Bellavista | D85: 166 | E85: 7 855 | F85: 7 927 | G85: 7 910 | H85: 7 964
A86: 060803 | B86: Chontali | D86: 87 | E86: 5 186 | F86: 5 021 | G86: 5 131 | H86: 5 268
A87: 060804 | B87: Colasay | D87: 78 | E87: 4 927 | F87: 2 595 | G87: 5 176 | H87: 5 379
A88: 060805 | B88: Huabal | D88: 57 | E88: 4 371 | F88: 4 314 | G88: 4 508 | H88: 4 695
A89: 060806 | B89: Las Pirias | D89: 47 | E89: 2 114 | F89: 2 248 | G89: 2 446 | H89: 2 613
A90: 060807 | B90: Pomahuaca | D90: 74 | E90: 4 737 | F90: 4 502 | G90: 4 726 | H90: 4 870
A91: 060808 | B91: Pucará | D91: 77 | E91: 3 245 | F91: 125 | G91: 3 571 | H91: 3 679
A92: 060809 | B92: Sallique | D92: 74 | E92: 3 806 | F92: 3 620 | G92: 3 746 | H92: 3 861
A93: 060810 | B93: San Felipe | D93: 60 | E93: 2 279 | F93: 2 232 | G93: 2 323 | H93: 2 372
A94: 060811 | B94: San José del Alto | D94: 50 | E94: 3 956 | F94: 3 896 | G94: 3 987 | H94: 4 050
A95: 060812 | B95: Santa Rosa | D95: 89 | E95: 4 615 | F95: 4 745 | G95: 5 067 | H95: 5 331
A96: 060900 | B96: San Ignacio | C96: =SUM(C97:C103) -> 0 | D96: =SUM(D97:D103) -> 1 003 | E96: =SUM(E97:E103) -> 76 286 | F96: =SUM(F97:F103) -> 70 542 | G96: =SUM(G97:G103) -> 73 607 | H96: 78 393
A97: 060901 | B97: San Ignacio | D97: 288 | E97: 19 927 | F97: 19 920 | G97: 20 020 | H97: 19 927
A98: 060902 | B98: Chirinos | D98: 108 | E98: 8 060 | F98: 7 759 | G98: 8 150 | H98: 8 637
A99: 060903 | B99: Huarango | D99: 140 | E99: 11 046 | F99: 8 715 | G99: 9 713 | H99: 10 808
A100: 060904 | B100: La Coipa | D100: 141 | E100: 11 263 | F100: 10 204 | G100: 10 834 | H100: 1 167
A101: 060905 | B101: Namballe | D101: 74 | E101: 5 402 | F101: 4 695 | G101: 5 174 | H101: 6 648
A102: 060906 | B102: San José de Lourdes | D102: 127 | E102: 9 946 | F102: 9 421 | G102: 9 695 | H102: 10 265
A103: 060907 | B103: Tabaconas | D103: 125 | E103: 10 642 | F103: 9 828 | G103: 10 021 | H103: 10 438
A104: 061000 | B104: San Marcos | C104: =SUM(C105:C111) -> 0 | D104: =SUM(D105:D111) -> 26 367 | E104: =SUM(E105:E111) -> 25 963 | F104: =SUM(F105:F111) -> 25 874 | G104: =SUM(G105:G111) -> 25 476 | H104: 25 388
A105: 061001 | B105: Pedro Gálvez | D105: 10 288 | E105: 10 871 | F105: 11 164 | G105: 10 785 | H105: 10 558
A106: 061002 | B106: Chancay | D106: 1 535 | E106: 1 537 | F106: 1 527 | G106: 1 446 | H106: 1 397
A107: 061003 | B107: Eduardo Villanueva | D107: 1 057 | E107: 1 573 | F107: 1 589 | G107: 1 528 | H107: 1 487
A108: 061004 | B108: Gregorio Pita | D108: 3 222 | E108: 2 368 | F108: 2 426 | G108: 2 313 | H108: 2 250
A109: 061005 | B109: Ichocán | D109: 781 | E109: 913 | F109: 976 | G109: 930 | H109: 888
A110: 061006 | B110: José Manuel Quiróz | D110: 1 856 | E110: 1 798 | F110: 1 754 | G110: 1 689 | H110: 1 643
A111: 061007 | B111: José Sabogal | D111: 7 628 | E111: 6 903 | F111: 6 438 | G111: 6 785 | H111: 7 165
A112: 061100 | B112: San Miguel | C112: =SUM(C113:C125) -> 0 | D112: =SUM(D113:D125) -> 26 253 | E112: =SUM(E113:E125) -> 22 147 | F112: =SUM(F113:F125) -> 22 862 | G112: =SUM(G113:G125) -> 21 275 | H112: 21 805
A113: 061101 | B113: San Miguel | D113: 8 037 | E113: 7 384 | F113: 7 529 | G113: 7 694 | H113: 7 537
A114: 061102 | B114: Bolívar | D114: 736 | E114: 580 | F114: 603 | G114: 586 | H114: 562
A115: 061103 | B115: Calquis | D115: 2 013 | E115: 2 021 | F115: 2 104 | G115: 2 038 | H115: 2 000
A116: 061104 | B116: Catilluc | D116: 1 618 | E116: 1 271 | F116: 1 299 | G116: 1 262 | H116: 1 255
A117: 061105 | B117: El Prado | D117: 162 | E117: 224 | F117: 309 | G117: 185 | H117: 312
A118: 061106 | B118: La Florida | D118: 1 050 | E118: 939 | F118: 1 030 | G118: 1 008 | H118: 976
A119: 061107 | B119: Llapa | D119: 2 913 | E119: 2 189 | F119: 2 256 | G119: 1 088 | H119: 1 957
A120: 061108 | B120: Nanchoc | D120: 736 | E120: 633 | F120: 659 | G120: 654 | H120: 661
A121: 061109 | B121: Niepos | D121: 1 879 | E121: 1 597 | F121: 1 601 | G121: 1 433 | H121: 1 308
A122: 061110 | B122: San Gregorio | D122: 1 115 | E122: 994 | F122: 1 076 | G122: 1 043 | H122: 1 010
A123: 061111 | B123: San Silvestre de Cochán | D123: 2 007 | E123: 1 716 | F123: 1 779 | G123: 1 719 | H123: 1 668
A124: 061112 | B124: Tongod | D124: 2 258 | E124: 1 097 | F124: 1 093 | G124: 1 137 | H124: 1 183
A125: 061113 | B125: Unión Agua Blanca | D125: 1 729 | E125: 1 502 | F125: 1 524 | G125: 1 428 | H125: 1 376
A126: 061200 | B126: San Pablo | C126: =SUM(C127:C130) -> 0 | D126: =SUM(D127:D130) -> 10 815 | E126: =SUM(E127:E130) -> 11 175 | F126: =SUM(F127:F130) -> 10 032 | G126: =SUM(G127:G130) -> 11 370 | H126: 11 341
A127: 061201 | B127: San Pablo | D127: 6 206 | E127: 6 792 | F127: 5 522 | G127: 6 746 | H127: 6 616
A128: 061202 | B128: San Bernardino | D128: 2 312 | E128: 2 146 | F128: 2 222 | G128: 2 222 | H128: 2 227
A129: 061203 | B129: San Luis | D129: 592 | E129: 390 | F129: 416 | G129: 500 | H129: 578
A130: 061204 | B130: Tumbadén | D130: 1 705 | E130: 1 847 | F130: 1 872 | G130: 1 902 | H130: 1 920
A131: 061300 | B131: Santa Cruz | C131: =SUM(C132:C142) -> 0 | D131: =SUM(D132:D142) -> 759 | E131: =SUM(E132:E142) -> 18 416 | F131: =SUM(F132:F142) -> 18 852 | G131: =SUM(G132:G142) -> 17 976 | H131: 17 267
A132: 061301 | B132: Santa Cruz | D132: 194 | E132: 5 034 | F132: 5 071 | G132: 4 627 | H132: 4 284
A133: 061302 | B133: Andabamba | D133: 37 | E133: 568 | F133: 627 | G133: 601 | H133: 564
A134: 061303 | B134: Catache | D134: 154 | E134: 4 930 | F134: 4 871 | G134: 4 692 | H134: 4 594
A135: 061304 | B135: Chancaybaños | D135: 54 | E135: 1 655 | F135: 1 688 | G135: 1 592 | H135: 1 521
A136: 061305 | B136: La Esperanza | D136: 56 | E136: 977 | F136: 1 081 | G136: 1 057 | H136: 1 018
A137: 061306 | B137: Ninabamba | D137: 51 | E137: 846 | F137: 910 | G137: 901 | H137: 875
A138: 061307 | B138: Pulán | D138: 89 | E138: 1 713 | F138: 1 777 | G138: 1 762 | H138: 1 735
A139: 061308 | B139: Saucepampa | D139: 33 | E139: 642 | F139: 660 | G139: 640 | H139: 616
A140: 061309 | B140: Sexi | D140: 9 | E140: 159 | F140: 197 | G140: 198 | H140: 197
A141: 061310 | B141: Uticyacu | D141: 28 | E141: 526 | F141: 567 | G141: 555 | H141: 544
A142: 061311 | B142: Yauyucán | D142: 54 | E142: 1 366 | F142: 1 403 | G142: 1 351 | H142: 1 319
